[Event "Grandmaster Triathlon - Blitz (GM2)"]
[Site "Biel, Switzerland"]
[Date "2026.07.19"]
[Round "1.1"]
[White "Xiao, Tong(Qd)"]
[Black "Kosteniuk, Alexandra"]
[Result "1-0"]
[TimeControl "3 + 2"]
[WhiteTitle "-"]
[BlackTitle "-"]
[WhiteFideId "8622388"]
[BlackFideId "4128125"]
[WhiteElo "2465"]
[BlackElo "2392"]

1. e4 {[%clk 00:03:03]} {[%emt 00:00:01]} c6 {[%clk 00:03:04]} {[%emt
00:00:01]} 2. d4 {[%clk 00:03:01]} {[%emt 00:00:03]} d5 {[%clk 00:03:05]} 3.
Nc3 {[%clk 00:03:02]} {[%emt 00:00:01]} dxe4 {[%clk 00:03:04]} {[%emt
00:00:03]} 4. Nxe4 {[%clk 00:03:03]} {[%emt 00:00:01]} Nf6 {[%clk 00:03:05]} 5.
Nxf6+ {[%clk 00:02:50]} {[%emt 00:00:14]} exf6 {[%clk 00:03:06]} {[%emt
00:00:01]} 6. c3 {[%clk 00:02:51]} {[%emt 00:00:02]} Bd6 {[%clk 00:03:07]}
{[%emt 00:00:01]} 7. Bd3 {[%clk 00:02:52]} O-O {[%clk 00:03:05]} {[%emt
00:00:04]} 8. Ne2 {[%clk 00:02:52]} {[%emt 00:00:01]} Re8 {[%clk 00:03:05]}
{[%emt 00:00:03]} 9. Be3 {[%clk 00:02:52]} {[%emt 00:00:01]} Nd7 {[%clk
00:02:49]} {[%emt 00:00:18]} 10. Qd2 {[%clk 00:02:53]} {[%emt 00:00:02]} b5
{[%clk 00:02:38]} {[%emt 00:00:13]} 11. O-O {[%clk 00:02:45]} {[%emt 00:00:09]}
Nb6 {[%clk 00:02:37]} {[%emt 00:00:03]} 12. Bf4 {[%clk 00:02:41]} {[%emt
00:00:06]} Bg4 {[%clk 00:02:33]} {[%emt 00:00:06]} 13. Ng3 {[%clk 00:02:38]}
{[%emt 00:00:06]} Nd5 {[%clk 00:02:18]} {[%emt 00:00:17]} 14. Bxd6 {[%clk
00:02:38]} {[%emt 00:00:01]} Qxd6 {[%clk 00:02:19]} {[%emt 00:00:01]} 15. Rae1
{[%clk 00:02:38]} {[%emt 00:00:02]} Qf4 {[%clk 00:02:07]} {[%emt 00:00:15]} 16.
Qxf4 {[%clk 00:02:32]} {[%emt 00:00:08]} Nxf4 {[%clk 00:02:07]} 17. Be4 {[%clk
00:02:33]} {[%emt 00:00:01]} Bd7 {[%clk 00:01:56]} {[%emt 00:00:14]} 18. Bf3
{[%clk 00:02:05]} {[%emt 00:00:30]} f5 {[%clk 00:01:48]} {[%emt 00:00:09]} 19.
Re3 {[%clk 00:02:00]} {[%emt 00:00:06]} g6 {[%clk 00:01:33]} {[%emt 00:00:19]}
20. h3 {[%clk 00:01:53]} {[%emt 00:00:09]} a5 {[%clk 00:01:32]} {[%emt
00:00:03]} 21. b3 {[%clk 00:01:46]} {[%emt 00:00:09]} Kg7 {[%clk 00:01:30]}
{[%emt 00:00:04]} 22. c4 {[%clk 00:01:41]} {[%emt 00:00:07]} bxc4 {[%clk
00:01:24]} {[%emt 00:00:08]} 23. bxc4 {[%clk 00:01:41]} {[%emt 00:00:02]} Rab8
{[%clk 00:01:25]} {[%emt 00:00:01]} 24. Rxe8 {[%clk 00:01:39]} {[%emt
00:00:04]} Bxe8 {[%clk 00:01:27]} 25. Re1 {[%clk 00:01:40]} {[%emt 00:00:01]}
Kf8 {[%clk 00:01:22]} {[%emt 00:00:06]} 26. Re5 {[%clk 00:01:35]} {[%emt
00:00:06]} a4 {[%clk 00:01:21]} {[%emt 00:00:05]} 27. Ne2 {[%clk 00:01:03]}
{[%emt 00:00:34]} Nd3 {[%clk 00:01:20]} {[%emt 00:00:02]} 28. Ra5 {[%clk
00:01:02]} {[%emt 00:00:02]} Rb4 {[%clk 00:01:12]} {[%emt 00:00:10]} 29. d5
{[%clk 00:00:58]} {[%emt 00:00:07]} cxd5 {[%clk 00:01:05]} {[%emt 00:00:09]} 30.
Bxd5 {[%clk 00:00:49]} {[%emt 00:00:10]} Rb1+ {[%clk 00:00:52]} {[%emt
00:00:14]} 31. Kh2 {[%clk 00:00:50]} {[%emt 00:00:01]} Nxf2 {[%clk 00:00:53]}
{[%emt 00:00:01]} 32. Ra8 {[%clk 00:00:41]} {[%emt 00:00:11]} Ke7 {[%clk
00:00:54]} 33. c5 {[%clk 00:00:42]} {[%emt 00:00:01]} g5 {[%clk 00:00:37]}
{[%emt 00:00:19]} 34. Kg3 {[%clk 00:00:26]} {[%emt 00:00:18]} Nd3 {[%clk
00:00:38]} 35. c6 {[%clk 00:00:21]} {[%emt 00:00:07]} f4+ {[%clk 00:00:39]} 36.
Kg4 {[%clk 00:00:18]} {[%emt 00:00:05]} Bxc6 {[%clk 00:00:36]} {[%emt
00:00:06]} 37. Bxc6 {[%clk 00:00:17]} {[%emt 00:00:03]} Ne5+ {[%clk 00:00:38]}
38. Kxg5 {[%clk 00:00:18]} {[%emt 00:00:01]} Nxc6 {[%clk 00:00:39]} 39. Rxa4
{[%clk 00:00:18]} {[%emt 00:00:02]} f3 {[%clk 00:00:30]} {[%emt 00:00:10]} 40.
gxf3 {[%clk 00:00:19]} {[%emt 00:00:01]} Ne5 {[%clk 00:00:18]} {[%emt
00:00:14]} 41. f4 {[%clk 00:00:17]} {[%emt 00:00:04]} Nf3+ {[%clk 00:00:14]}
{[%emt 00:00:06]} 42. Kg4 {[%clk 00:00:18]} {[%emt 00:00:01]} Nd2 {[%clk
00:00:09]} {[%emt 00:00:08]} 43. Ra7+ {[%clk 00:00:17]} {[%emt 00:00:03]} Kf6
{[%clk 00:00:10]} 44. Ra6+ {[%clk 00:00:19]} {[%emt 00:00:01]} Ke7 {[%clk
00:00:08]} {[%emt 00:00:04]} 45. Nc3 {[%clk 00:00:16]} {[%emt 00:00:04]} Rg1+
{[%clk 00:00:09]} {[%emt 00:00:01]} 46. Kf5 {[%clk 00:00:17]} {[%emt 00:00:01]}
Rg3 {[%clk 00:00:08]} {[%emt 00:00:03]} 47. Nd5+ {[%clk 00:00:18]} {[%emt
00:00:01]} Kd7 {[%clk 00:00:09]} {[%emt 00:00:01]} 48. Nf6+ {[%clk 00:00:19]}
{[%emt 00:00:01]} Kc7 {[%clk 00:00:07]} {[%emt 00:00:04]} 49. h4 {[%clk
00:00:16]} {[%emt 00:00:04]} Nf3 {[%clk 00:00:05]} {[%emt 00:00:03]} 50. h5
{[%clk 00:00:18]} {[%emt 00:00:01]} Nd4+ {[%clk 00:00:04]} {[%emt 00:00:03]} 51.
Ke5 {[%clk 00:00:16]} {[%emt 00:00:04]} Nc6+ {[%clk 00:00:05]} {[%emt
00:00:01]} 52. Kf5 {[%clk 00:00:13]} {[%emt 00:00:03]} Nd4+ {[%clk 00:00:06]}
{[%emt 00:00:03]} 53. Ke4 {[%clk 00:00:14]} Nc6 {[%clk 00:00:04]} {[%emt
00:00:04]} 54. Nxh7 {[%clk 00:00:10]} {[%emt 00:00:05]} Rh3 {[%clk 00:00:04]}
{[%emt 00:00:02]} 55. Nf6 {[%clk 00:00:11]} Rh2 {[%clk 00:00:05]} {[%emt
00:00:01]} 56. Ra8 {[%clk 00:00:07]} {[%emt 00:00:07]} Re2+ {[%clk 00:00:03]}
{[%emt 00:00:04]} 57. Kf5 {[%clk 00:00:07]} Ne7+ {[%clk 00:00:04]} {[%emt
00:00:02]} 58. Kg4 {[%clk 00:00:08]} Rg2+ {[%clk 00:00:04]} {[%emt 00:00:02]}
59. Kf3 {[%clk 00:00:08]} {[%emt 00:00:02]} Rh2 {[%clk 00:00:05]} {[%emt
00:00:01]} 60. Ra7+ {[%clk 00:00:07]} {[%emt 00:00:03]} Kd6 {[%clk 00:00:07]}
61. Ra6+ {[%clk 00:00:08]} {[%emt 00:00:01]} Kc5 {[%clk 00:00:07]} {[%emt
00:00:01]} 62. h6 {[%clk 00:00:05]} {[%emt 00:00:05]} Nf5 {[%clk 00:00:08]}
{[%emt 00:00:02]} 63. Ng4 {[%clk 00:00:04]} {[%emt 00:00:03]} Rh3+ {[%clk
00:00:09]} {[%emt 00:00:01]} 64. Ke4 {[%clk 00:00:05]} Nd6+ {[%clk 00:00:08]}
{[%emt 00:00:02]} 65. Ke5 {[%clk 00:00:06]} {[%emt 00:00:01]} Rh4 {[%clk
00:00:04]} {[%emt 00:00:07]} 66. Rxd6 {[%clk 00:00:04]} {[%emt 00:00:04]} Rxg4
{[%clk 00:00:05]} {[%emt 00:00:01]} 67. Rf6 {[%clk 00:00:04]} {[%emt 00:00:02]}
Rh4 {[%clk 00:00:06]} 68. Rxf7 {[%clk 00:00:05]} {[%emt 00:00:01]} Rxh6 {[%clk
00:00:07]} 69. Rc7+ {[%clk 00:00:06]} Kb6 {[%clk 00:00:09]} {[%emt 00:00:01]}
70. Rc1 {[%clk 00:00:06]} {[%emt 00:00:01]} Rh2 {[%clk 00:00:09]} {[%emt
00:00:01]} 71. f5 {[%clk 00:00:07]} {[%emt 00:00:01]} Rxa2 {[%clk 00:00:10]}
{[%emt 00:00:01]} 72. f6 {[%clk 00:00:08]} Re2+ {[%clk 00:00:11]} {[%emt
00:00:01]} 73. Kd6 {[%clk 00:00:09]} Rd2 {[%clk 00:00:12]} {[%emt 00:00:01]} 74.
Ke7 {[%clk 00:00:10]} Re2+ {[%clk 00:00:13]} 75. Kf8 {[%clk 00:00:11]} 1-0

[Event "Grandmaster Triathlon - Blitz (GM2)"]
[Site "Biel, Switzerland"]
[Date "2026.07.19"]
[Round "1.2"]
[White "Vaishali, Rameshbabu"]
[Black "Materia, Marco"]
[Result "0-1"]
[TimeControl "3 + 2"]
[WhiteTitle "-"]
[BlackTitle "-"]
[WhiteFideId "5091756"]
[BlackFideId "45150451"]
[WhiteElo "2364"]
[BlackElo "2509"]

1. e4 {[%clk 00:03:02]} {[%emt 00:00:02]} d6 {[%clk 00:03:03]} {[%emt
00:00:01]} 2. d4 {[%clk 00:03:02]} {[%emt 00:00:02]} Nf6 {[%clk 00:03:04]} 3.
Bd3 {[%clk 00:03:03]} {[%emt 00:00:01]} e5 {[%clk 00:03:05]} {[%emt 00:00:02]}
4. Nf3 {[%clk 00:03:01]} {[%emt 00:00:04]} exd4 {[%clk 00:03:04]} {[%emt
00:00:02]} 5. Nxd4 {[%clk 00:03:01]} {[%emt 00:00:01]} g6 {[%clk 00:03:05]}
{[%emt 00:00:01]} 6. O-O {[%clk 00:03:02]} {[%emt 00:00:02]} Bg7 {[%clk
00:03:06]} 7. Nc3 {[%clk 00:03:01]} {[%emt 00:00:03]} O-O {[%clk 00:03:07]}
{[%emt 00:00:02]} 8. Bf4 {[%clk 00:02:55]} {[%emt 00:00:08]} Re8 {[%clk
00:03:06]} {[%emt 00:00:03]} 9. Qd2 {[%clk 00:02:47]} {[%emt 00:00:10]} c6
{[%clk 00:03:05]} {[%emt 00:00:04]} 10. Bh6 {[%clk 00:02:43]} {[%emt 00:00:05]}
Qb6 {[%clk 00:03:04]} {[%emt 00:00:03]} 11. Bxg7 {[%clk 00:02:39]} {[%emt
00:00:07]} Kxg7 {[%clk 00:03:04]} {[%emt 00:00:02]} 12. Nde2 {[%clk 00:02:29]}
{[%emt 00:00:11]} Qxb2 {[%clk 00:02:59]} {[%emt 00:00:07]} 13. a4 {[%clk
00:01:56]} {[%emt 00:00:36]} Qb4 {[%clk 00:02:46]} {[%emt 00:00:14]} 14. f4
{[%clk 00:01:50]} {[%emt 00:00:08]} Qc5+ {[%clk 00:02:31]} {[%emt 00:00:17]} 15.
Kh1 {[%clk 00:01:50]} {[%emt 00:00:01]} Ng4 {[%clk 00:02:32]} 16. Ng3 {[%clk
00:01:48]} {[%emt 00:00:04]} Qe3 {[%clk 00:02:29]} {[%emt 00:00:05]} 17. Rad1
{[%clk 00:00:58]} {[%emt 00:00:52]} Nd7 {[%clk 00:02:14]} {[%emt 00:00:17]} 18.
Be2 {[%clk 00:00:25]} {[%emt 00:00:36]} Nf2+ {[%clk 00:02:10]} {[%emt
00:00:05]} 19. Rxf2 {[%clk 00:00:26]} {[%emt 00:00:01]} Qxf2 {[%clk 00:02:11]}
{[%emt 00:00:01]} 20. Qxd6 {[%clk 00:00:26]} {[%emt 00:00:02]} Qc5 {[%clk
00:01:53]} {[%emt 00:00:20]} 21. Qd2 {[%clk 00:00:25]} {[%emt 00:00:03]} Nf6
{[%clk 00:01:50]} {[%emt 00:00:05]} 22. e5 {[%clk 00:00:21]} {[%emt 00:00:06]}
Nd5 {[%clk 00:01:42]} {[%emt 00:00:10]} 23. Nxd5 {[%clk 00:00:17]} {[%emt
00:00:06]} cxd5 {[%clk 00:01:41]} {[%emt 00:00:02]} 24. Bd3 {[%clk 00:00:17]}
{[%emt 00:00:02]} Bg4 {[%clk 00:01:37]} {[%emt 00:00:06]} 25. Rf1 {[%clk
00:00:12]} {[%emt 00:00:07]} Qd4 {[%clk 00:01:19]} {[%emt 00:00:20]} 26. c3
{[%clk 00:00:11]} {[%emt 00:00:03]} Qxa4 {[%clk 00:01:17]} {[%emt 00:00:03]} 27.
f5 {[%clk 00:00:11]} {[%emt 00:00:03]} Kh8 {[%clk 00:01:15]} {[%emt 00:00:04]}
28. e6 {[%clk 00:00:09]} {[%emt 00:00:04]} Bxf5 {[%clk 00:01:06]} {[%emt
00:00:11]} 29. Bxf5 {[%clk 00:00:06]} {[%emt 00:00:05]} gxf5 {[%clk 00:01:07]}
{[%emt 00:00:01]} 30. exf7 {[%clk 00:00:06]} {[%emt 00:00:01]} Re7 {[%clk
00:00:54]} {[%emt 00:00:15]} 31. Rxf5 {[%clk 00:00:03]} {[%emt 00:00:05]} Rf8
{[%clk 00:00:53]} {[%emt 00:00:02]} 32. Qh6 {[%clk 00:00:04]} {[%emt 00:00:01]}
Rfxf7 {[%clk 00:00:50]} {[%emt 00:00:05]} 33. Rxf7 {[%clk 00:00:04]} {[%emt
00:00:02]} Rxf7 {[%clk 00:00:51]} {[%emt 00:00:01]} 34. h3 {[%clk 00:00:05]}
Qa1+ {[%clk 00:00:49]} {[%emt 00:00:05]} 35. Kh2 {[%clk 00:00:06]} Qxc3 {[%clk
00:00:49]} {[%emt 00:00:01]} 36. Qe6 {[%clk 00:00:06]} {[%emt 00:00:01]} Qf6
{[%clk 00:00:48]} {[%emt 00:00:03]} 37. Qe8+ {[%clk 00:00:06]} {[%emt
00:00:02]} Rf8 {[%clk 00:00:49]} 38. Qd7 {[%clk 00:00:08]} {[%emt 00:00:01]}
Qg7 {[%clk 00:00:49]} {[%emt 00:00:02]} 39. Qxd5 {[%clk 00:00:08]} {[%emt
00:00:01]} Re8 {[%clk 00:00:46]} {[%emt 00:00:06]} 40. Qc5 {[%clk 00:00:07]}
{[%emt 00:00:03]} a6 {[%clk 00:00:47]} {[%emt 00:00:01]} 41. Qb6 {[%clk
00:00:08]} {[%emt 00:00:01]} Rg8 {[%clk 00:00:48]} 0-1

[Event "Grandmaster Triathlon - Blitz (GM2)"]
[Site "Biel, Switzerland"]
[Date "2026.07.19"]
[Round "1.3"]
[White "Finek, Vaclav"]
[Black "Yip, Carissa"]
[Result "1-0"]
[TimeControl "3 + 2"]
[WhiteTitle "-"]
[BlackTitle "-"]
[WhiteFideId "23718293"]
[BlackFideId "2090732"]
[WhiteElo "2504"]
[BlackElo "2369"]

1. d4 {[%clk 00:03:03]} Nf6 {[%clk 00:03:04]} {[%emt 00:00:01]} 2. c4 {[%clk
00:03:05]} e6 {[%clk 00:03:05]} {[%emt 00:00:01]} 3. Nf3 {[%clk 00:03:05]}
{[%emt 00:00:01]} b6 {[%clk 00:03:06]} {[%emt 00:00:01]} 4. g3 {[%clk
00:03:06]} Bb7 {[%clk 00:03:06]} {[%emt 00:00:02]} 5. Bg2 {[%clk 00:03:07]} Be7
{[%clk 00:03:07]} {[%emt 00:00:01]} 6. O-O {[%clk 00:03:07]} {[%emt 00:00:02]}
O-O {[%clk 00:03:08]} {[%emt 00:00:02]} 7. Re1 {[%clk 00:03:08]} {[%emt
00:00:01]} h6 {[%clk 00:03:07]} {[%emt 00:00:02]} 8. h4 {[%clk 00:03:02]}
{[%emt 00:00:09]} d5 {[%clk 00:02:57]} {[%emt 00:00:13]} 9. cxd5 {[%clk
00:03:01]} {[%emt 00:00:02]} exd5 {[%clk 00:02:57]} {[%emt 00:00:02]} 10. Nc3
{[%clk 00:03:02]} Nbd7 {[%clk 00:02:54]} {[%emt 00:00:05]} 11. Bf4 {[%clk
00:03:03]} {[%emt 00:00:01]} Ne4 {[%clk 00:02:46]} {[%emt 00:00:10]} 12. Rc1
{[%clk 00:03:03]} {[%emt 00:00:01]} Bd6 {[%clk 00:02:44]} {[%emt 00:00:05]} 13.
Bxd6 {[%clk 00:02:56]} {[%emt 00:00:10]} Nxd6 {[%clk 00:02:32]} {[%emt
00:00:14]} 14. Ne5 {[%clk 00:02:56]} {[%emt 00:00:01]} Nf6 {[%clk 00:01:34]}
{[%emt 00:00:59]} 15. Qb3 {[%clk 00:02:57]} Nde4 {[%clk 00:01:28]} {[%emt
00:00:08]} 16. Nxe4 {[%clk 00:02:52]} {[%emt 00:00:07]} Nxe4 {[%clk 00:01:17]}
{[%emt 00:00:14]} 17. Nd3 {[%clk 00:02:36]} {[%emt 00:00:18]} Re8 {[%clk
00:01:15]} {[%emt 00:00:04]} 18. e3 {[%clk 00:02:35]} {[%emt 00:00:03]} a6
{[%clk 00:01:12]} {[%emt 00:00:05]} 19. Rc2 {[%clk 00:02:29]} {[%emt 00:00:08]}
Rc8 {[%clk 00:01:08]} {[%emt 00:00:06]} 20. Rec1 {[%clk 00:02:28]} {[%emt
00:00:03]} Qd6 {[%clk 00:01:08]} {[%emt 00:00:02]} 21. Qb4 {[%clk 00:02:22]}
{[%emt 00:00:08]} Qd7 {[%clk 00:00:17]} {[%emt 00:00:53]} 22. Ne5 {[%clk
00:02:21]} {[%emt 00:00:02]} Qf5 {[%clk 00:00:18]} 23. Bxe4 {[%clk 00:02:06]}
{[%emt 00:00:17]} Qxe4 {[%clk 00:00:12]} {[%emt 00:00:08]} 24. Rxc7 {[%clk
00:01:57]} {[%emt 00:00:11]} Rxc7 {[%clk 00:00:13]} {[%emt 00:00:01]} 25. Rxc7
{[%clk 00:01:58]} Rxe5 {[%clk 00:00:13]} {[%emt 00:00:02]} 26. Rxb7 {[%clk
00:01:44]} {[%emt 00:00:16]} Qb1+ {[%clk 00:00:14]} 27. Kg2 {[%clk 00:01:40]}
{[%emt 00:00:06]} Rf5 {[%clk 00:00:07]} {[%emt 00:00:09]} 28. Qd2 {[%clk
00:01:26]} {[%emt 00:00:16]} b5 {[%clk 00:00:08]} {[%emt 00:00:02]} 29. a3
{[%clk 00:01:24]} {[%emt 00:00:05]} Qe4+ {[%clk 00:00:06]} {[%emt 00:00:03]} 30.
Kh2 {[%clk 00:01:24]} {[%emt 00:00:02]} g5 {[%clk 00:00:06]} {[%emt 00:00:03]}
31. f4 {[%clk 00:01:05]} {[%emt 00:00:20]} gxh4 {[%clk 00:00:03]} {[%emt
00:00:04]} 32. gxh4 {[%clk 00:01:04]} {[%emt 00:00:03]} Kh7 {[%clk 00:00:04]}
{[%emt 00:00:02]} 33. Qf2 {[%clk 00:00:39]} {[%emt 00:00:27]} Rf6 {[%clk
00:00:05]} {[%emt 00:00:02]} 34. Rc7 {[%clk 00:00:39]} {[%emt 00:00:02]} Qf5
{[%clk 00:00:05]} {[%emt 00:00:02]} 35. Qc2 {[%clk 00:00:40]} Kg6 {[%clk
00:00:04]} {[%emt 00:00:03]} 36. Kg3 {[%clk 00:00:38]} {[%emt 00:00:04]} Qxc2
{[%clk 00:00:04]} {[%emt 00:00:03]} 37. Rxc2 {[%clk 00:00:39]} {[%emt
00:00:01]} Kf5 {[%clk 00:00:04]} {[%emt 00:00:01]} 38. Kf3 {[%clk 00:00:40]}
Kg6 {[%clk 00:00:05]} {[%emt 00:00:02]} 39. Rc5 {[%clk 00:00:41]} {[%emt
00:00:01]} Rd6 {[%clk 00:00:06]} 40. e4 {[%clk 00:00:32]} {[%emt 00:00:11]}
dxe4+ {[%clk 00:00:06]} {[%emt 00:00:02]} 41. Kxe4 {[%clk 00:00:33]} {[%emt
00:00:01]} Re6+ {[%clk 00:00:06]} {[%emt 00:00:02]} 42. Kf3 {[%clk 00:00:31]}
{[%emt 00:00:04]} Rd6 {[%clk 00:00:07]} {[%emt 00:00:01]} 43. Ke4 {[%clk
00:00:28]} {[%emt 00:00:05]} Re6+ {[%clk 00:00:07]} {[%emt 00:00:02]} 44. Re5
{[%clk 00:00:29]} Rd6 {[%clk 00:00:08]} {[%emt 00:00:01]} 45. d5 {[%clk
00:00:28]} {[%emt 00:00:02]} Kf6 {[%clk 00:00:08]} {[%emt 00:00:02]} 46. Kd4
{[%clk 00:00:28]} {[%emt 00:00:03]} Rd8 {[%clk 00:00:08]} {[%emt 00:00:02]} 47.
b3 {[%clk 00:00:24]} {[%emt 00:00:06]} Rc8 {[%clk 00:00:08]} {[%emt 00:00:01]}
48. d6 {[%clk 00:00:24]} {[%emt 00:00:01]} Rd8 {[%clk 00:00:04]} {[%emt
00:00:07]} 49. Kd5 {[%clk 00:00:24]} {[%emt 00:00:02]} a5 {[%clk 00:00:03]}
{[%emt 00:00:02]} 50. Kc6 {[%clk 00:00:24]} {[%emt 00:00:02]} b4 {[%clk
00:00:04]} {[%emt 00:00:02]} 51. axb4 {[%clk 00:00:20]} {[%emt 00:00:07]} axb4
{[%clk 00:00:04]} {[%emt 00:00:02]} 52. d7 {[%clk 00:00:21]} 1-0

[Event "Grandmaster Triathlon - Blitz (GM2)"]
[Site "Biel, Switzerland"]
[Date "2026.07.19"]
[Round "2.1"]
[White "Finek, Vaclav"]
[Black "Xiao, Tong(Qd)"]
[Result "1/2-1/2"]
[TimeControl "3 + 2"]
[WhiteTitle "-"]
[BlackTitle "-"]
[WhiteFideId "23718293"]
[BlackFideId "8622388"]
[WhiteElo "2504"]
[BlackElo "2465"]

1. d4 {[%clk 00:03:03]} Nc6 {[%clk 00:03:03]} {[%emt 00:00:01]} 2. Nf3 {[%clk
00:03:03]} {[%emt 00:00:02]} d6 {[%clk 00:03:04]} {[%emt 00:00:01]} 3. g3
{[%clk 00:02:34]} {[%emt 00:00:31]} g6 {[%clk 00:03:04]} {[%emt 00:00:02]} 4.
Bg2 {[%clk 00:02:35]} {[%emt 00:00:01]} Bg7 {[%clk 00:03:05]} 5. O-O {[%clk
00:02:35]} {[%emt 00:00:02]} e5 {[%clk 00:03:03]} {[%emt 00:00:05]} 6. dxe5
{[%clk 00:02:34]} {[%emt 00:00:03]} dxe5 {[%clk 00:02:57]} {[%emt 00:00:08]} 7.
Nc3 {[%clk 00:02:32]} {[%emt 00:00:05]} Bd7 {[%clk 00:02:41]} {[%emt 00:00:17]}
8. Nd5 {[%clk 00:02:27]} {[%emt 00:00:07]} h6 {[%clk 00:02:34]} {[%emt
00:00:09]} 9. c4 {[%clk 00:02:27]} {[%emt 00:00:02]} Nge7 {[%clk 00:02:32]}
{[%emt 00:00:04]} 10. Ne1 {[%clk 00:02:24]} {[%emt 00:00:06]} Be6 {[%clk
00:02:29]} {[%emt 00:00:05]} 11. Be3 {[%clk 00:02:16]} {[%emt 00:00:10]} Qd7
{[%clk 00:02:17]} {[%emt 00:00:14]} 12. Nd3 {[%clk 00:02:09]} {[%emt 00:00:09]}
Rd8 {[%clk 00:01:46]} {[%emt 00:00:32]} 13. Nc5 {[%clk 00:02:09]} {[%emt
00:00:02]} Qc8 {[%clk 00:01:48]} 14. Qb3 {[%clk 00:01:53]} {[%emt 00:00:18]} b6
{[%clk 00:01:00]} {[%emt 00:00:49]} 15. Nxe7 {[%clk 00:01:53]} {[%emt
00:00:02]} Nxe7 {[%clk 00:01:00]} {[%emt 00:00:02]} 16. Bb7 {[%clk 00:01:54]}
{[%emt 00:00:02]} Qb8 {[%clk 00:00:59]} {[%emt 00:00:03]} 17. Nxe6 {[%clk
00:01:54]} {[%emt 00:00:01]} fxe6 {[%clk 00:00:58]} {[%emt 00:00:03]} 18. Be4
{[%clk 00:01:55]} {[%emt 00:00:01]} Kf7 {[%clk 00:00:57]} {[%emt 00:00:02]} 19.
f4 {[%clk 00:01:51]} {[%emt 00:00:06]} Rhf8 {[%clk 00:00:50]} {[%emt 00:00:10]}
20. Rad1 {[%clk 00:01:25]} {[%emt 00:00:29]} Kg8 {[%clk 00:00:48]} {[%emt
00:00:04]} 21. c5 {[%clk 00:01:24]} {[%emt 00:00:03]} Qc8 {[%clk 00:00:48]}
{[%emt 00:00:02]} 22. fxe5 {[%clk 00:01:17]} {[%emt 00:00:08]} Rxd1 {[%clk
00:00:40]} {[%emt 00:00:11]} 23. Rxd1 {[%clk 00:01:16]} {[%emt 00:00:03]} Nf5
{[%clk 00:00:41]} {[%emt 00:00:01]} 24. c6 {[%clk 00:01:00]} {[%emt 00:00:18]}
Qe8 {[%clk 00:00:28]} {[%emt 00:00:15]} 25. Rd7 {[%clk 00:00:42]} {[%emt
00:00:19]} Bxe5 {[%clk 00:00:29]} {[%emt 00:00:01]} 26. Bxf5 {[%clk 00:00:36]}
{[%emt 00:00:08]} gxf5 {[%clk 00:00:29]} {[%emt 00:00:01]} 27. Bxh6 {[%clk
00:00:34]} {[%emt 00:00:04]} Rf7 {[%clk 00:00:31]} 28. Qd3 {[%clk 00:00:35]}
Bd6 {[%clk 00:00:32]} 29. Rxf7 {[%clk 00:00:34]} {[%emt 00:00:04]} Kxf7 {[%clk
00:00:32]} {[%emt 00:00:02]} 30. Qc3 {[%clk 00:00:29]} {[%emt 00:00:07]} Qg8
{[%clk 00:00:33]} 31. Qf3 {[%clk 00:00:27]} {[%emt 00:00:04]} Qg6 {[%clk
00:00:32]} {[%emt 00:00:03]} 32. Bf4 {[%clk 00:00:27]} {[%emt 00:00:01]} e5
{[%clk 00:00:25]} {[%emt 00:00:09]} 33. Qd5+ {[%clk 00:00:25]} {[%emt
00:00:04]} Kf6 {[%clk 00:00:27]} 34. Be3 {[%clk 00:00:23]} {[%emt 00:00:04]} f4
{[%clk 00:00:21]} {[%emt 00:00:08]} 35. Bf2 {[%clk 00:00:20]} {[%emt 00:00:05]}
Qb1+ {[%clk 00:00:14]} {[%emt 00:00:08]} 36. Kg2 {[%clk 00:00:21]} Qxb2 {[%clk
00:00:15]} {[%emt 00:00:01]} 37. Qe4 {[%clk 00:00:16]} {[%emt 00:00:07]} Qxa2
{[%clk 00:00:12]} {[%emt 00:00:05]} 38. gxf4 {[%clk 00:00:17]} Qg8+ {[%clk
00:00:13]} {[%emt 00:00:01]} 39. Kf1 {[%clk 00:00:18]} {[%emt 00:00:01]} exf4
{[%clk 00:00:06]} {[%emt 00:00:09]} 40. Bd4+ {[%clk 00:00:19]} Kf7 {[%clk
00:00:07]} {[%emt 00:00:01]} 41. Qf5+ {[%clk 00:00:20]} {[%emt 00:00:02]} Ke8
{[%clk 00:00:06]} {[%emt 00:00:02]} 42. Qd7+ {[%clk 00:00:16]} {[%emt
00:00:06]} Kf8 {[%clk 00:00:08]} 43. Qc8+ {[%clk 00:00:10]} {[%emt 00:00:08]}
Kf7 {[%clk 00:00:09]} 44. Qf5+ {[%clk 00:00:06]} {[%emt 00:00:05]} Ke8 {[%clk
00:00:10]} {[%emt 00:00:01]} 45. Bf6 {[%clk 00:00:06]} {[%emt 00:00:02]} Qc4
{[%clk 00:00:05]} {[%emt 00:00:07]} 46. Qd7+ {[%clk 00:00:05]} {[%emt
00:00:02]} Kf8 {[%clk 00:00:07]} 47. Qg7+ {[%clk 00:00:07]} Ke8 {[%clk
00:00:08]} 48. Qd7+ {[%clk 00:00:05]} {[%emt 00:00:03]} Kf8 {[%clk 00:00:10]}
49. Qg7+ {[%clk 00:00:06]} Ke8 {[%clk 00:00:11]} 50. Qd7+ {[%clk 00:00:05]}
{[%emt 00:00:03]} 1/2-1/2